bitfinex-derivatives/quotes_BTCF0:USTF0_20250501
["timestamp","ask_amount","ask_price","bid_price","bid_amount"]
[1746112305135,0.37124957,97208.0,97207.0,0.2056508]
[1746112305338,0.47412157,97208.0,97207.0,0.2056508]
[1746112305643,0.2056585,97205.0,97204.0,0.2570705]
[1746112306039,0.31983657,97205.0,97204.0,0.2570705]
[1746112306345,0.41226651,97209.0,97208.0,0.2056517]
[1746112306346,0.3608,97209.0,97208.0,0.2056517]
[1746112306639,0.00013287,97226.0,97221.0,0.2056224]
[1746112306842,0.11417807,97213.0,97197.0,0.36234325]
[1746112307139,0.2056527,97210.0,97209.0,0.2056433]
[1746112307741,0.31983077,97210.0,97209.0,0.2056433]
[1746112307941,0.07151681,97240.0,97209.0,0.352872]
[1746112308245,0.0513979,97237.0,97225.0,0.2056157]
[1746112308542,0.0513966,97239.0,97233.0,0.2055988]
[1746112308742,0.37829479,97234.0,97233.0,0.2055988]
[1746112309039,7.291e-05,97243.0,97233.0,0.2055988]
[1746112309040,1e-08,97243.0,97242.0,0.2055798]
[1746112309237,1e-08,97243.0,97242.0,0.5663798]
[1746112310243,4.001e-05,97243.0,97242.0,0.5663798]
[1746112310845,4.001e-05,97243.0,97242.0,0.5723798]
[1746112311039,0.0015,97250.0,97242.0,0.719636]
[1746112311348,0.0184428,97264.0,97263.0,0.2055354]
[1746112312137,0.33819417,97264.0,97263.0,0.2055354]
[1746112312435,0.2240161,97264.0,97263.0,0.2055354]
[1746112312635,0.0184828,97264.0,97263.0,0.2055354]
[1746112312840,0.0184428,97264.0,97263.0,0.2055354]
[1746112313039,0.0184828,97264.0,97263.0,0.2055354]
[1746112313436,0.00023129,97281.0,97279.0,0.2055016]
[1746112313839,0.0513739,97282.0,97281.0,0.205491]
[1746112314040,0.2054974,97282.0,97281.0,0.2568646]
[1746112314239,0.2054974,97282.0,97279.0,0.0513749]
[1746112314240,5.401e-05,97288.0,97285.0,0.2054889]
[1746112314639,0.2134868,97286.0,97285.0,0.2054889]
[1746112314842,0.2055016,97280.0,97279.0,0.0523749]
[1746112315140,0.11417807,97284.0,97283.0,0.2054932]
[1746112315347,0.00804,97286.0,97285.0,0.2054889]
[1746112315643,0.008,97286.0,97285.0,0.2054889]
[1746112315846,0.00804,97286.0,97285.0,0.2054889]
[1746112316043,0.008,97286.0,97285.0,0.2054889]
[1746112316343,0.32770487,97286.0,97285.0,0.2054889]
[1746112316541,0.12221807,97286.0,97285.0,0.2054889]
[1746112316738,0.00804,97286.0,97285.0,0.2054889]
[1746112317242,0.12221807,97286.0,97285.0,0.2054889]
[1746112317841,0.12217807,97286.0,97285.0,0.2054889]
[1746112318041,0.12221807,97286.0,97285.0,0.2054889]
[1746112318243,0.32770487,97286.0,97285.0,0.2054889]
[1746112318448,0.12221807,97286.0,97285.0,0.2054889]
[1746112318843,0.32770487,97286.0,97285.0,0.2054889]
[1746112319646,0.2055078,97276.0,97275.0,0.5663066]
[1746112319847,0.31968587,97276.0,97275.0,0.3608]
[1746112320146,0.11417807,97276.0,97275.0,0.5663099]
[1746112320738,0.11417807,97276.0,97275.0,0.5683099]
[1746112320943,0.31968587,97276.0,97275.0,0.002]
[1746112321250,0.205567,97248.0,97241.0,0.3608]
[1746112321443,0.31974507,97248.0,97245.0,0.2055716]
[1746112321639,0.31974507,97248.0,97243.0,0.051394]
[1746112322046,0.31974507,97248.0,97247.0,0.20711137]
[1746112322241,0.31974507,97248.0,97247.0,0.00154227]
[1746112322848,0.31978507,97248.0,97247.0,0.00154227]
[1746112323050,0.31978507,97248.0,97247.0,0.00454227]
[1746112323651,0.31978507,97248.0,97247.0,0.00154227]
[1746112323846,0.11417807,97242.0,97227.0,0.0514025]
[1746112324050,0.2055923,97236.0,97235.0,0.20662293]
[1746112324454,0.2055923,97236.0,97235.0,0.00102843]
[1746112324753,0.2055923,97236.0,97235.0,0.20662293]
[1746112324953,0.2055923,97236.0,97235.0,0.00102843]
[1746112325158,0.0514019,97229.0,97220.0,0.2570188]
[1746112325343,0.2056304,97221.0,97220.0,0.2570188]
[1746112325746,0.0514068,97220.0,97215.0,0.00154268]
[1746112325946,0.31980847,97218.0,97215.0,0.00154268]
[1746112326456,0.051397,97238.0,97228.0,0.2056093]
[1746112326756,0.2056244,97223.0,97222.0,0.2056126]
[1746112326954,0.04114,97227.0,97226.0,0.2056135]
[1746112327154,0.2467514,97227.0,97226.0,0.2056135]
[1746112327547,0.0514042,97225.0,97222.0,0.3608]
[1746112327754,0.2570251,97223.0,97222.0,0.2056219]
[1746112327948,0.2570251,97223.0,97222.0,0.2086219]
[1746112328955,0.2570251,97223.0,97222.0,0.2136219]
[1746112329352,0.2570251,97223.0,97222.0,0.008]
[1746112329948,0.2570251,97223.0,97222.0,0.005]
[1746112330250,0.37120317,97223.0,97222.0,0.005]
[1746112330453,0.2056304,97218.0,97217.0,0.00771823]
[1746112330648,0.68060847,97218.0,97217.0,0.00771823]
[1746112331050,0.68060847,97218.0,97217.0,0.21335073]
[1746112331549,0.31980847,97218.0,97217.0,0.21335073]
[1746112332051,0.31980847,97218.0,97217.0,0.21935073]
[1746112332357,0.11417807,97218.0,97217.0,0.21935073]
[1746112333249,0.31980847,97218.0,97217.0,0.21735073]
[1746112333454,0.11417807,97218.0,97217.0,0.21935073]
[1746112333655,0.31980847,97218.0,97217.0,0.21535073]
[1746112333859,0.11417807,97218.0,97217.0,0.21735073]
[1746112334054,0.31980847,97218.0,97217.0,0.21935073]
[1746112335256,0.06689,97227.0,97226.0,0.2056135]
[1746112335450,0.06685,97227.0,97226.0,0.5664135]
[1746112335752,0.3608,97262.0,97244.0,0.2055754]
[1746112335753,0.3608,97254.0,97244.0,0.2055754]
[1746112335949,0.3608,97254.0,97244.0,0.5663754]
[1746112336150,0.3608,97254.0,97244.0,0.4943854]
[1746112336349,0.3608,97254.0,97249.0,0.2055649]
[1746112336859,0.11571807,97250.0,97249.0,0.2055649]
[1746112337547,0.32128077,97250.0,97249.0,0.2055649]
[1746112338051,0.11571807,97250.0,97249.0,0.2095649]
[1746112338360,0.0015,97250.0,97249.0,0.2095649]
[1746112338552,0.00154,97250.0,97249.0,0.2095649]
[1746112339262,0.0257,97258.0,97257.0,0.2055479]
[1746112339466,0.0257,97258.0,97257.0,0.5663479]
[1746112339658,0.02574,97258.0,97257.0,0.5663479]
[1746112339862,0.0257,97258.0,97257.0,0.5663479]
[1746112340159,0.34542387,97258.0,97257.0,0.5663479]
[1746112340553,0.34546387,97258.0,97257.0,0.5663479]
[1746112341155,0.13991807,97258.0,97257.0,0.5663479]
[1746112341953,0.02574,97258.0,97257.0,0.5663479]
[1746112342254,0.01129,97259.0,97258.0,0.2055458]
[1746112342454,0.2055437,97259.0,97258.0,0.2055458]
[1746112342661,0.31972177,97259.0,97258.0,0.2055458]
[1746112343655,0.31972177,97259.0,97258.0,0.2085458]
[1746112344057,0.31972177,97259.0,97258.0,0.007]
[1746112344561,0.31972177,97259.0,97258.0,0.2125458]
[1746112344760,0.11417807,97259.0,97258.0,0.2125458]
[1746112344969,0.01082,97266.0,97265.0,0.205531]
[1746112345269,0.001,97266.0,97265.0,0.205531]
[1746112345466,0.32074697,97266.0,97265.0,0.205531]
[1746112346165,0.32074697,97266.0,97265.0,0.208531]
[1746112346469,0.32074697,97266.0,97265.0,0.210531]
[1746112346862,0.00104,97266.0,97265.0,0.568331]
[1746112347064,0.00104,97266.0,97265.0,0.571331]
[1746112347366,0.001,97266.0,97265.0,0.571331]
[1746112347570,0.2065689,97266.0,97265.0,0.571331]
[1746112348870,0.2065689,97266.0,97265.0,0.3658]
[1746112349075,0.205567,97248.0,97247.0,0.5663667]
[1746112349376,0.205567,97248.0,97247.0,0.5663691]
[1746112349967,0.2569385,97259.0,97258.0,0.2055416]
[1746112350172,0.2569385,97259.0,97258.0,0.1644216]
[1746112350369,0.11417807,97259.0,97258.0,0.5252216]
[1746112350673,0.20558721,97264.0,97263.0,0.2055353]
[1746112350873,0.31971127,97264.0,97263.0,0.2055353]
[1746112351075,0.2055437,97259.0,97258.0,0.5693421]
[1746112351277,0.31972177,97259.0,97258.0,0.3638]
[1746112351662,0.31972177,97259.0,97258.0,0.5693458]
[1746112351870,0.31972177,97259.0,97258.0,0.003]
[1746112352776,0.2055479,97257.0,97256.0,0.20555]
[1746112353273,0.31972597,97257.0,97256.0,0.20555]
[1746112353468,0.205567,97248.0,97247.0,0.5663652]
[1746112353872,0.051389,97254.0,97247.0,0.3608]
[1746112354072,0.3608,97262.0,97247.0,0.3608]
[1746112354267,0.2055467,97258.0,97257.0,0.1644279]
[1746112354870,0.205542,97260.0,97259.0,0.256925]
[1746112355067,0.3608,97262.0,97261.0,0.2055395]
[1746112355470,0.68051547,97262.0,97261.0,0.2055395]
[1746112355675,5.401e-05,97264.0,97263.0,0.2055353]
[1746112355883,0.2055332,97264.0,97263.0,0.2569187]
[1746112356181,0.31975127,97264.0,97263.0,0.2569187]
[1746112356381,0.11417807,97264.0,97263.0,0.2569187]
[1746112356572,0.11421807,97264.0,97263.0,0.2569187]
[1746112357173,0.31975127,97264.0,97263.0,0.2569187]
[1746112357585,0.11421807,97264.0,97263.0,0.2579187]
[1746112357882,0.31971127,97264.0,97263.0,0.001]
[1746112358083,0.205567,97248.0,97247.0,0.3608]
[1746112359178,0.2055712,97246.0,97245.0,0.00154236]
[1746112359383,0.31974927,97246.0,97245.0,0.00154236]
[1746112360485,0.31974927,97246.0,97245.0,0.00454236]
[1746112360690,0.31974927,97246.0,97245.0,0.00854236]
[1746112363675,0.2055987,97233.0,97224.0,0.4122044]
[1746112363871,0.68057677,97233.0,97228.0,0.2570095]
[1746112364078,0.68057677,97233.0,97229.0,0.2056063]
[1746112364286,0.68057677,97233.0,97231.0,0.2056023]
[1746112364584,0.31977677,97233.0,97232.0,0.36234269]
[1746112365179,0.31977677,97233.0,97232.0,0.56794349]
[1746112365483,0.31977677,97233.0,97232.0,0.00154269]
[1746112365875,0.31977677,97233.0,97232.0,0.00754269]
[1746112366076,0.31977677,97233.0,97232.0,0.21314349]
[1746112366683,0.31977677,97233.0,97232.0,0.01154269]
[1746112366877,0.31977677,97233.0,97224.0,0.3608]
[1746112366878,0.2056156,97225.0,97224.0,0.3608]
[1746112367077,0.31979367,97225.0,97224.0,0.3608]
[1746112368181,0.2056304,97218.0,97215.0,0.00154268]
[1746112368380,0.31980847,97218.0,97215.0,0.00154268]
[1746112368577,0.31480847,97218.0,97215.0,0.00154268]
[1746112368975,0.67560847,97218.0,97215.0,0.00154268]
[1746112369179,0.66960847,97218.0,97215.0,0.00154268]
[1746112369683,0.0514146,97205.0,97175.0,0.36182907]
[1746112369988,0.2057023,97184.0,97183.0,0.3608]
[1746112370573,0.0514326,97171.0,97162.0,0.36234381]
[1746112370778,0.2057447,97164.0,97162.0,0.36234381]
[1746112371078,0.31992277,97164.0,97163.0,0.00912791]
[1746112371281,0.00011437,97170.0,97165.0,0.0514353]
[1746112371484,5.401e-05,97177.0,97176.0,0.2057193]
[1746112371781,0.20577121,97177.0,97176.0,0.2057193]
[1746112372381,0.0514275,97181.0,97180.0,0.2571339]
[1746112372686,0.0514275,97181.0,97180.0,0.6179339]
[1746112372982,0.4187,97183.0,97182.0,0.2057066]
[1746112373188,0.00982401,97192.0,97191.0,0.2056875]
[1746112373484,0.00977,97192.0,97191.0,0.5664875]
[1746112373683,0.05146531,97211.0,97205.0,0.2056579]
[1746112373987,0.0015,97215.0,97205.0,0.5664579]
[1746112374184,0.2066958,97206.0,97205.0,0.5664579]
[1746112374390,0.2066558,97206.0,97205.0,0.5664579]
[1746112374681,0.00104,97206.0,97205.0,0.5664579]
[1746112374884,0.001,97206.0,97205.0,0.5664579]
[1746112375081,0.00104,97206.0,97205.0,0.5664579]
[1746112375287,0.32587387,97206.0,97205.0,0.3618]
[1746112375587,0.32587387,97206.0,97205.0,0.5684579]
[1746112375588,0.2166958,97206.0,97205.0,0.5684579]
[1746112375786,0.2166558,97206.0,97205.0,0.5684579]
[1746112376188,0.2116558,97206.0,97205.0,0.5674579]
[1746112376687,0.2116958,97206.0,97205.0,0.5674579]
[1746112377284,0.2066958,97206.0,97205.0,0.5664579]
[1746112377490,0.2116958,97206.0,97205.0,0.5674579]
[1746112377987,0.32187387,97206.0,97205.0,0.3608]
[1746112378485,0.32087387,97206.0,97205.0,0.3608]
[1746112378681,0.32087387,97206.0,97191.0,0.3608]
[1746112378682,0.205677,97197.0,97196.0,0.2056759]
[1746112379283,0.31985507,97197.0,97196.0,0.2056759]
[1746112379481,0.2056854,97192.0,97191.0,0.3608]
[1746112379685,0.27538307,97220.0,97203.0,0.0514151]
[1746112380189,0.00304,97206.0,97205.0,0.5664579]
[1746112380384,0.003,97206.0,97205.0,0.5664579]
[1746112380590,0.00304,97206.0,97205.0,0.5664579]
[1746112380781,0.00104,97206.0,97205.0,0.5664579]
[1746112381590,0.00204,97206.0,97205.0,0.5664579]
[1746112381885,0.2076958,97206.0,97205.0,0.5664579]
[1746112382289,0.32287387,97206.0,97205.0,0.5664579]
[1746112382791,0.32287387,97206.0,97205.0,0.3608]
[1746112382984,0.32187387,97206.0,97205.0,0.3608]
[1746112383387,0.2571124,97195.0,97194.0,0.0514202]
[1746112383890,0.37129047,97195.0,97194.0,0.0514202]
[1746112384092,0.2056939,97190.0,97189.0,0.0514227]
[1746112384289,0.36184,97206.0,97187.0,0.3608]
[1746112384486,0.11417807,97199.0,97197.0,0.0514187]
[1746112384687,0.31984867,97199.0,97198.0,0.2056727]
[1746112384883,0.11417807,97199.0,97198.0,0.2056727]
[1746112385095,0.3618,97206.0,97204.0,0.2056579]
[1746112385096,0.3085003,97205.0,97204.0,0.2056579]
[1746112385487,0.002,97206.0,97205.0,0.2056579]
[1746112385693,0.11319401,97213.0,97205.0,0.2056579]
[1746112385694,0.11319401,97213.0,97212.0,0.2056431]
[1746112385990,0.00107291,97236.0,97235.0,0.2055945]
[1746112386187,0.11525098,97236.0,97235.0,0.2055945]
[1746112386390,0.32077037,97236.0,97235.0,0.2055945]
[1746112386687,0.32081037,97236.0,97235.0,0.2055945]
[1746112387794,0.32781037,97236.0,97235.0,0.2065945]
[1746112388091,0.32781037,97236.0,97235.0,0.21446278]
[1746112388594,0.33381037,97236.0,97235.0,0.21546278]
[1746112388997,0.33377037,97236.0,97235.0,0.21546278]
[1746112389295,0.33381037,97236.0,97235.0,0.21546278]
[1746112389591,0.33381037,97236.0,97235.0,0.00986828]
[1746112390000,0.0514031,97229.0,97226.0,0.2056093]
[1746112390189,0.2056191,97227.0,97226.0,0.2570122]
[1746112390493,0.11417807,97227.0,97226.0,0.2570122]
[1746112390701,0.219633,97236.0,97235.0,0.2055945]
[1746112390892,0.014,97236.0,97235.0,0.2055945]
[1746112391093,0.2196323,97236.0,97235.0,0.2055945]
[1746112391291,0.2125923,97236.0,97235.0,0.2055945]
[1746112391499,0.2126323,97236.0,97235.0,0.2055945]
[1746112392095,0.2136323,97236.0,97235.0,0.2065945]
[1746112392494,0.00804,97236.0,97235.0,0.2065945]
[1746112392995,0.01504,97236.0,97235.0,0.2075945]
[1746112394195,0.01104,97236.0,97235.0,0.2065945]
[1746112394402,0.011,97236.0,97235.0,0.2065945]
[1746112394700,9.842e-05,97255.0,97235.0,0.768644]
[1746112394994,0.001,97266.0,97265.0,0.205531]
[1746112395197,0.2065289,97266.0,97265.0,0.205531]
[1746112395496,0.32070697,97266.0,97265.0,0.205531]
[1746112395697,0.32074697,97266.0,97265.0,0.205531]
[1746112396290,0.32574697,97266.0,97265.0,0.206531]
[1746112397198,0.33174697,97266.0,97265.0,0.207531]
[1746112398201,0.33174697,97266.0,97265.0,0.002]
[1746112399096,0.33174697,97266.0,97265.0,0.207531]
[1746112399301,0.33174697,97266.0,97265.0,0.002]
[1746112400201,0.32574697,97266.0,97265.0,0.001]
[1746112400403,0.32974697,97266.0,97265.0,0.001]
[1746112401199,0.43255897,97266.0,97265.0,0.001]
[1746112401388,0.0513916,97249.0,97246.0,0.2569594]
[1746112401592,0.2055733,97247.0,97246.0,0.2569594]
[1746112402192,0.2055733,97247.0,97246.0,0.205567]
[1746112402388,0.2055818,97242.0,97241.0,0.2055748]
[1746112402591,0.31975987,97242.0,97241.0,0.2055748]
[1746112402796,0.2055721,97246.0,97245.0,0.2055691]
[1746112403301,0.31975017,97246.0,97245.0,0.2055691]
[1746112403802,0.2055721,97246.0,97245.0,0.256962]
[1746112404304,0.2056121,97246.0,97245.0,0.256962]
[1746112404603,0.2056121,97246.0,97245.0,0.258962]
[1746112404811,4e-05,97246.0,97245.0,0.258962]
[1746112405096,5.401e-05,97254.0,97253.0,0.2055564]
[1746112405302,0.00104,97266.0,97261.0,0.2569144]
[1746112405303,0.0513833,97264.0,97261.0,0.2569144]
[1746112405496,0.2055494,97262.0,97261.0,0.2569144]
[1746112405694,0.31972747,97262.0,97261.0,0.2569144]
[1746112407108,0.2569316,97260.0,97259.0,0.2055437]
[1746112407302,0.37110967,97260.0,97259.0,0.2055437]
[1746112407502,0.31972387,97260.0,97259.0,0.2055437]
[1746112407802,0.2055458,97260.0,97259.0,0.2055437]
[1746112408205,0.31972387,97260.0,97259.0,0.2055437]
[1746112408800,0.2055458,97260.0,97259.0,0.2055437]
[1746112409002,0.2055458,97260.0,97259.0,0.2065437]
[1746112409396,0.2085374,97262.0,97261.0,0.2055395]
[1746112409603,0.32271547,97262.0,97261.0,0.2055395]
[1746112409911,0.31971547,97262.0,97261.0,0.2055395]
[1746112410112,0.31975547,97262.0,97261.0,0.2055395]
[1746112412515,0.32275547,97262.0,97261.0,0.2055395]
[1746112413414,0.2055416,97260.0,97259.0,0.2055417]
[1746112413617,0.31971967,97260.0,97259.0,0.2055417]
[1746112414520,0.00304,97262.0,97261.0,0.2055395]
[1746112414813,0.003,97262.0,97261.0,0.5663395]
[1746112415116,0.00304,97262.0,97261.0,0.5663395]
[1746112415317,0.003,97262.0,97261.0,0.5663395]
[1746112415520,0.003,97262.0,97261.0,0.66915549]
[1746112416010,0.00304,97262.0,97261.0,0.66915549]
[1746112416216,4e-05,97262.0,97261.0,0.66915549]
[1746112416815,0.00304,97262.0,97261.0,0.66915549]
[1746112417011,0.00304,97262.0,97261.0,0.5663395]
[1746112417216,0.00304,97262.0,97261.0,0.66915549]
[1746112417615,0.00204,97262.0,97261.0,0.66915549]
[1746112418409,0.00204,97262.0,97261.0,0.67015549]
[1746112418910,0.00204,97262.0,97261.0,0.5673395]
[1746112421322,0.11617807,97262.0,97261.0,0.5673395]
[1746112421527,0.11621807,97262.0,97261.0,0.5673395]
[1746112421818,0.00204,97262.0,97261.0,0.5673395]
[1746112422924,0.001,97266.0,97265.0,0.205531]
[1746112423523,0.00104,97266.0,97265.0,0.205531]
[1746112424324,0.00404,97266.0,97265.0,0.205531]
[1746112426826,0.004,97266.0,97265.0,0.205531]
[1746112427124,0.00404,97266.0,97265.0,0.205531]
[1746112429123,5.401e-05,97274.0,97273.0,0.2055141]
[1746112429325,0.2069896,97285.0,97284.0,0.2054909]
[1746112429715,0.32116767,97285.0,97284.0,0.2054909]
[1746112430317,0.11967807,97285.0,97284.0,0.2054909]
[1746112430522,0.32520687,97285.0,97284.0,0.2054909]
[1746112430918,0.00554,97285.0,97284.0,0.2054909]
[1746112431124,0.11,97300.0,97284.0,0.233832]
[1746112431317,0.11,97300.0,97299.0,0.2054592]
[1746112432022,0.11004,97300.0,97299.0,0.3054592]
[1746112432321,0.11004,97300.0,97299.0,0.2131387]
[1746112432620,0.01,97308.0,97307.0,0.2054423]
[1746112433319,0.01,97308.0,97307.0,0.3054423]
[1746112433727,0.01004,97308.0,97307.0,0.3054423]
[1746112433921,0.01,97308.0,97307.0,0.3054423]
[1746112434127,0.01004,97308.0,97307.0,0.3074423]
[1746112434329,0.01,97308.0,97307.0,0.3074423]
[1746112434528,0.01004,97308.0,97307.0,0.3074423]
[1746112434730,0.01004,97308.0,97307.0,0.3094423]
[1746112434925,0.2465218,97317.0,97316.0,0.2054233]
[1746112435116,0.0411,97317.0,97316.0,0.5662233]
[1746112435630,0.04114,97317.0,97316.0,0.5662233]
[1746112436036,0.2054297,97315.0,97307.0,0.002]
[1746112436241,4e-05,97317.0,97315.0,0.2054254]
[1746112436529,0.2054254,97316.0,97315.0,0.2054254]
[1746112436727,0.31960347,97316.0,97315.0,0.2054254]
[1746112437123,0.31964347,97316.0,97315.0,0.2054254]
[1746112437726,0.205436,97310.0,97309.0,0.2567891]
[1746112437927,0.31961407,97310.0,97309.0,0.2567891]
[1746112438937,0.33112865,97310.0,97309.0,0.2567891]
[1746112439226,0.00404,97316.0,97313.0,0.051357]
[1746112439432,0.2607836,97316.0,97315.0,0.2054254]
[1746112439632,0.2608236,97316.0,97315.0,0.2054254]
[1746112439821,0.37388167,97316.0,97315.0,0.2054254]
[1746112440023,0.37100167,97316.0,97315.0,0.2054254]
[1746112440734,0.37500167,97316.0,97315.0,0.2054254]
[1746112441825,0.11821807,97316.0,97315.0,0.2054254]
[1746112442230,0.32364137,97316.0,97315.0,0.2054254]
[1746112442833,0.32360137,97316.0,97315.0,0.2054254]
[1746112443132,0.32364137,97316.0,97315.0,0.2054254]
[1746112443927,0.11821807,97316.0,97315.0,0.2054254]
[1746112444327,0.11521807,97316.0,97315.0,0.2054254]
[1746112445932,0.008,97328.0,97327.0,0.2054001]
[1746112446122,0.23129817,97352.0,97351.0,0.2053495]
[1746112446327,0.2053537,97350.0,97349.0,0.2053531]
[1746112446526,0.2053748,97340.0,97339.0,0.2567164]
[1746112446732,0.0513404,97346.0,97339.0,0.2567164]
[1746112446932,0.11417807,97344.0,97339.0,0.05912075]
[1746112447127,0.11417807,97344.0,97343.0,0.2053621]
[1746112447335,0.57720298,97350.0,97349.0,0.2053537]
[1746112447634,0.56488684,97350.0,97349.0,0.22141887]
[1746112447930,0.67136786,97350.0,97349.0,0.02869103]
[1746112448130,0.66031648,97350.0,97349.0,0.23404473]
[1746112448331,0.6500548,97350.0,97349.0,0.23404473]
[1746112449228,0.6500548,97350.0,97349.0,0.02869103]
[1746112449428,0.6570548,97350.0,97349.0,0.02869103]
[1746112449629,0.6620548,97350.0,97349.0,0.02869103]
[1746112452136,0.2567399,97335.0,97334.0,0.2053774]
[1746112452538,0.31957107,97335.0,97334.0,0.2053774]
[1746112453437,0.32057107,97335.0,97334.0,0.2053774]
[1746112453626,0.32457107,97335.0,97334.0,0.2053774]
[1746112454041,0.11917807,97335.0,97327.0,0.00758056]
[1746112454339,0.205398,97328.0,97327.0,0.2567454]
[1746112454638,0.205398,97328.0,97327.0,0.2053959]
[1746112454935,0.2054064,97324.0,97323.0,0.20694921]
[1746112455331,0.34877207,97325.0,97324.0,0.2054064]
[1746112455527,0.55417637,97325.0,97324.0,0.2054064]
[1746112455731,0.34877207,97325.0,97324.0,0.2054064]
[1746112456131,0.2567493,97332.0,97331.0,0.2567332]
[1746112456537,0.37092737,97332.0,97331.0,0.2567332]
[1746112456733,0.2053959,97330.0,97325.0,0.051351]
[1746112456942,0.2054022,97328.0,97327.0,0.2054001]
[1746112457736,0.31958027,97328.0,97327.0,0.2054001]
[1746112459840,0.32258027,97328.0,97327.0,0.2054001]
[1746112460138,0.051351,97326.0,97323.0,0.00931879]
[1746112460452,0.2054508,97303.0,97298.0,0.0513652]
[1746112460631,0.68042887,97303.0,97290.0,0.18325353]
[1746112460831,0.31964367,97296.0,97295.0,1e-08]
[1746112461138,0.31964367,97296.0,97276.0,0.3608]
[1746112461139,0.4187,97296.0,97276.0,0.3608]
[1746112461331,0.2055247,97268.0,97265.0,0.00102811]
[1746112461528,0.11417807,97274.0,97267.0,0.36234214]
[1746112461737,0.2055233,97273.0,97272.0,0.2055141]
[1746112461940,0.256903,97273.0,97272.0,0.2055141]
[1746112462242,0.2055247,97268.0,97267.0,0.36234214]
[1746112462439,0.2055247,97268.0,97267.0,0.57555645]
[1746112463239,0.2055247,97268.0,97267.0,0.00922965]
[1746112463441,0.2568811,97282.0,97281.0,0.205493]
[1746112463843,0.37105917,97282.0,97281.0,0.205493]
[1746112464344,0.2055141,97275.0,97274.0,0.2055097]
[1746112464537,0.2055141,97275.0,97272.0,0.18325353]
[1746112464538,0.2055205,97270.0,97269.0,0.2568962]
[1746112465038,0.2055205,97270.0,97269.0,0.0891262]
[1746112465244,0.2055205,97270.0,97267.0,0.37402965]
[1746112465245,0.2055168,97272.0,97271.0,0.2568932]
[1746112465746,0.0513768,97277.0,97276.0,0.3082544]
[1746112466042,0.2568805,97280.0,97279.0,0.2055015]
[1746112466246,0.51495712,97344.0,97277.0,0.051376]
[1746112466247,0.3081982,97301.0,97300.0,0.2568167]
[1746112466550,0.0015,97320.0,97319.0,0.205417]
[1746112466746,0.11417807,97310.0,97298.0,0.3608]
[1746112466944,0.2568108,97304.0,97303.0,0.2054508]
[1746112467145,0.2054487,97304.0,97303.0,0.2054508]
[1746112467446,0.2568061,97311.0,97310.0,0.2567865]
[1746112467950,0.31962677,97304.0,97303.0,0.3081688]
[1746112469035,0.2054592,97299.0,97298.0,0.3638]
[1746112469240,0.2054994,97281.0,97280.0,0.2054976]
[1746112469440,0.2054947,97283.0,97279.0,0.4121749]
[1746112469637,0.2054947,97283.0,97282.0,0.2054951]
[1746112469840,0.31967277,97283.0,97282.0,0.2054951]
[1746112470148,0.16555167,97283.0,97280.0,0.2568725]
[1746112470345,0.2053796,97340.0,97282.0,0.67614359]
[1746112470542,0.2053811,97336.0,97335.0,0.2567257]
[1746112470743,0.2053811,97336.0,97334.0,0.3608]
[1746112470744,0.0513429,97341.0,97336.0,0.2053788]
[1746112470942,0.2053824,97336.0,97335.0,0.2053832]
[1746112471544,0.01231171,97336.0,97335.0,0.2053832]
[1746112472249,0.12798978,97336.0,97335.0,0.2053832]
[1746112472642,0.12798978,97336.0,97335.0,0.2073832]
[1746112472843,0.33537088,97336.0,97335.0,0.2073832]
[1746112473551,0.12998978,97336.0,97335.0,0.2073832]
[1746112473744,0.12798978,97336.0,97335.0,0.2073832]
[1746112473944,0.33537088,97336.0,97335.0,0.2073832]
[1746112474340,0.2073811,97336.0,97335.0,0.4573832]
[1746112474650,0.2053537,97350.0,97349.0,0.2053533]
[1746112474849,0.21766541,97350.0,97349.0,0.2053533]
[1746112475049,0.33334348,97350.0,97349.0,0.2053533]
[1746112475853,0.33334348,97350.0,97335.0,0.00875158]
[1746112475854,0.0513445,97338.0,97335.0,0.00875158]
[1746112476146,0.32105917,97336.0,97335.0,0.21413058]
[1746112476351,0.2053779,97338.0,97337.0,0.205379]
[1746112477250,0.2053811,97336.0,97335.0,0.00775158]
[1746112477457,0.2063769,97338.0,97337.0,0.205379]
[1746112477944,0.2063769,97338.0,97337.0,0.22051043]
[1746112478255,0.32205497,97338.0,97337.0,0.01513143]
[1746112478948,0.32205497,97338.0,97337.0,0.22051043]
[1746112479653,0.32105497,97338.0,97337.0,0.22051043]
[1746112479854,0.32205497,97338.0,97337.0,0.22038594]
[1746112480155,0.32205497,97338.0,97337.0,0.22051817]
[1746112480853,0.32205497,97338.0,97337.0,0.01513917]
[1746112481056,0.32205497,97338.0,97337.0,0.205379]
[1746112481353,0.2063769,97338.0,97337.0,0.566179]
[1746112481752,0.2063769,97338.0,97337.0,0.666179]
[1746112482545,0.001,97338.0,97337.0,0.666179]
[1746112482746,0.02594917,97352.0,97351.0,0.2053496]
[1746112482958,0.02594917,97352.0,97351.0,0.6661496]
[1746112483153,0.02594917,97352.0,97351.0,0.76886959]
[1746112483856,0.23529667,97352.0,97351.0,0.76886959]
[1746112484052,0.02994917,97352.0,97351.0,0.6661496]
[1746112484357,0.02194917,97352.0,97351.0,0.76886959]
[1746112484747,0.051334,97359.0,97355.0,0.05109272]
[1746112484946,0.051334,97359.0,97351.0,0.56351999]
[1746112484947,0.32102557,97352.0,97351.0,0.9269496]
[1746112485150,0.001,97352.0,97351.0,0.5361496]
[1746112485355,0.2053218,97366.0,97365.0,0.205318]
[1746112485951,0.00154189,97367.0,97366.0,0.205318]
[1746112486161,0.20685779,97367.0,97366.0,0.42294008]
[1746112487145,0.00554189,97367.0,97366.0,0.32294008]
[1746112487351,0.205299,97379.0,97378.0,0.2052864]
[1746112487653,0.205299,97379.0,97378.0,0.27179539]
[1746112487854,0.32097707,97379.0,97378.0,0.27179539]
[1746112488049,0.32097707,97379.0,97378.0,0.22047859]
[1746112488755,0.3608,97392.0,97379.0,0.0513223]
[1746112488947,0.3608,97392.0,97385.0,0.2052779]
[1746112489150,0.3608,97392.0,97385.0,0.22086918]
[1746112489354,0.2062758,97386.0,97385.0,0.22086918]
[1746112489551,0.001,97386.0,97385.0,0.22086918]
[1746112489753,0.0513065,97410.0,97385.0,0.22086918]
[1746112489754,0.3608,97399.0,97398.0,0.2052505]
[1746112489952,0.3608,97399.0,97398.0,0.33135215]
[1746112490352,0.11,97400.0,97399.0,0.2052484]
[1746112490552,0.11,97400.0,97399.0,0.22083968]
[1746112490755,0.3152463,97400.0,97399.0,0.22127395]
[1746112491056,0.3152463,97400.0,97399.0,0.2052484]
[1746112491256,0.11,97400.0,97399.0,0.3079164]
[1746112491458,0.11,97400.0,97399.0,0.2052484]
[1746112492160,0.112,97400.0,97399.0,0.2052484]
[1746112492353,0.098,97400.0,97399.0,0.4079164]
[1746112492955,0.3608,97410.0,97409.0,0.2052274]